bitfinex/quotes_ETHUSD_20251213
["timestamp","ask_amount","ask_price","bid_price","bid_amount"]
[1765626324180,0.29794867,3121.3,3120.8,7.51001316]
[1765626324380,0.29794867,3121.2,3120.9,0.2977]
[1765626324585,0.29794867,3121.1,3120.9,0.2977]
[1765626324782,0.29794867,3121.0,3120.9,0.2977]
[1765626325282,0.29794867,3121.0,3120.9,0.5954]
[1765626325682,0.29794867,3121.0,3120.9,3.79960391]
[1765626327472,0.29794867,3121.0,3120.9,4.25289496]
[1765626327698,0.29825867,3121.7,3120.9,11.63479887]
[1765626328000,0.29825867,3121.6,3121.0,0.2977]
[1765626328207,0.29825867,3121.5,3121.0,0.2977]
[1765626328499,0.29825867,3121.4,3121.0,0.2977]
[1765626328704,0.29825867,3121.3,3121.1,0.86272066]
[1765626329001,0.4814,3121.7,3121.2,0.506]
[1765626329180,0.2982646,3121.6,3121.2,0.8037]
[1765626329504,0.2982646,3121.5,3121.2,0.8037]
[1765626329801,0.2982646,3121.4,3121.3,3.20379329]
[1765626330005,0.2982646,3121.4,3121.3,3.92493875]
[1765626330209,0.4814,3121.7,3121.3,7.42643204]
[1765626330505,0.29816857,3121.6,3121.3,6.70528658]
[1765626330704,0.29816857,3121.5,3121.3,6.70528658]
[1765626331000,0.4814,3121.7,3121.3,6.70528658]
[1765626331204,0.29816859,3121.6,3121.3,6.70528658]
[1765626331406,0.29816859,3121.5,3121.3,6.70528658]
[1765626331707,0.4814,3121.7,3121.3,6.70528658]
[1765626331884,0.29815831,3121.6,3121.3,6.70528658]
[1765626332084,0.29815831,3121.5,3121.3,6.70528658]
[1765626332290,0.4814,3121.7,3121.3,7.00298658]
[1765626332485,0.29807109,3121.6,3121.3,7.00298658]
[1765626332683,0.29807109,3121.5,3121.3,7.50432524]
[1765626332887,0.4814,3121.7,3121.3,7.50432524]
[1765626333106,0.29807126,3121.6,3121.3,7.50432524]
[1765626333293,0.29807126,3121.5,3121.3,7.50432524]
[1765626333497,0.4814,3121.7,3121.3,7.50432524]
[1765626333803,0.29801001,3121.6,3121.3,7.50432524]
[1765626333989,0.29801001,3121.5,3121.4,0.80103252]
[1765626334189,0.29801001,3121.5,3121.4,1.09873252]
[1765626334395,0.29801001,3121.5,3121.4,4.60012317]
[1765626335607,0.198,3121.9,3121.4,7.80381382]
[1765626335777,0.29790991,3121.8,3121.4,7.80381382]
[1765626335978,0.29790991,3121.7,3121.4,7.80381382]
[1765626336282,0.29790991,3121.6,3121.4,7.80381382]
[1765626336478,0.4814,3121.8,3121.4,7.20841382]
[1765626336725,0.29786919,3121.7,3121.4,7.20841382]
[1765626337022,0.29786919,3121.6,3121.4,7.20841382]
[1765626337226,0.4814,3121.8,3121.4,7.20841382]
[1765626337529,0.2978377,3121.7,3121.4,7.20841382]
[1765626337699,0.2978377,3121.6,3121.4,7.20841382]
[1765626337901,0.6765,3121.9,3121.4,7.20841382]
[1765626338120,0.29783763,3121.8,3121.4,7.20841382]
[1765626338447,0.29783763,3121.7,3121.5,0.2977]
[1765626338649,0.29783763,3121.6,3121.5,0.2977]
[1765626338804,0.29783763,3121.6,3121.4,7.20841382]
[1765626339129,0.4824,3122.0,3121.5,1.04831138]
[1765626339318,0.29779256,3121.9,3121.5,0.2977]
[1765626339506,0.29779256,3121.8,3121.5,0.2977]
[1765626339707,0.29779256,3121.7,3121.5,0.2977]
[1765626339891,0.29779256,3121.6,3121.5,0.2977]
[1765626340098,0.29779252,3121.6,3121.5,0.2977]
[1765626340619,0.29779252,3121.6,3121.5,3.50128801]
[1765626343225,0.76389252,3121.6,3121.5,3.50128801]
[1765626345221,0.29779252,3121.6,3121.5,3.50128801]
[1765626347948,1.24529252,3121.6,3121.5,3.20358801]
[1765626348715,0.76389252,3121.6,3121.5,3.20358801]
[1765626349950,0.76389252,3121.6,3121.3,6.40758658]
[1765626350152,0.4661,3121.6,3121.3,6.40758658]
[1765626351219,0.29809269,3121.5,3121.3,6.70528658]
[1765626351432,0.4661,3121.6,3121.3,6.70528658]
[1765626351632,0.29809282,3121.5,3121.3,6.70528658]
[1765626351831,0.4661,3121.6,3121.3,6.70528658]
[1765626352031,0.29809283,3121.5,3121.3,6.70528658]
[1765626352237,0.4661,3121.6,3121.3,6.70528658]
[1765626352541,0.29817559,3121.5,3121.3,6.70528658]
[1765626352720,0.4661,3121.6,3121.3,6.70528658]
[1765626352920,0.29817559,3121.5,3121.3,6.40758658]
[1765626353258,0.4661,3121.6,3121.3,6.40758658]
[1765626353460,0.4661,3121.4,3121.1,3.20392464]
[1765626353744,0.4661,3121.2,3121.1,3.20392464]
[1765626353938,0.7643285,3121.2,3121.1,3.20392464]
[1765626354136,1.2457285,3121.2,3121.1,3.20392464]
[1765626355345,1.2457285,3121.2,3121.0,3.20405597]
[1765626355648,1.2464285,3121.1,3121.0,3.20405597]
[1765626356244,1.2464285,3121.1,3120.8,3.71028718]
[1765626356245,1.2464285,3121.1,3120.9,3.20420391]
[1765626356444,0.2982285,3121.0,3120.9,3.20420391]
[1765626357120,0.7776285,3121.0,3120.9,3.20420391]
[1765626357320,1.2464285,3121.0,3120.8,0.506]
[1765626357516,1.2464285,3120.9,3120.8,3.7103054]
[1765626358353,1.2464285,3120.9,3120.8,0.506]
[1765626358581,1.4315285,3120.9,3120.7,3.20434473]
[1765626358846,1.2464285,3120.8,3120.7,3.20434473]
[1765626359277,1.2464285,3120.8,3120.5,0.506]
[1765626359549,0.7670285,3120.7,3120.6,3.20450956]
[1765626359918,1.2464285,3120.7,3120.6,3.20450956]
[1765626360869,1.2464285,3120.7,3120.5,3.20457583]
[1765626361169,0.9482,3120.6,3120.5,3.20457583]
[1765626361328,1.24639834,3120.6,3120.5,3.20457583]
[1765626361658,0.9482,3120.6,3120.5,3.20457583]
[1765626363366,1.24604201,3120.6,3120.1,0.9624778]
[1765626363531,1.32247415,3120.5,3119.8,0.2977]
[1765626363730,0.29784201,3120.4,3120.0,3.20507089]
[1765626363925,0.29784201,3120.3,3120.0,3.20507089]
[1765626364131,0.4794,3120.1,3120.0,3.20507089]
[1765626364453,0.4794,3120.1,3119.7,0.506]
[1765626364653,0.4794,3119.9,3119.7,0.506]
[1765626364858,0.4794,3119.9,3119.7,3.71141084]
[1765626365163,0.4794,3119.8,3119.6,3.20747553]
[1765626365381,0.4794,3119.7,3119.6,0.002]
[1765626365664,0.77676865,3119.7,3119.6,0.002]
[1765626365831,2.02970166,3119.7,3119.6,0.002]
[1765626367541,1.73233301,3119.7,3119.6,0.002]
[1765626367743,0.9482,3119.7,3119.6,0.002]
[1765626368948,4.15363642,3119.7,3119.6,0.002]
[1765626370444,4.24808358,3119.7,3119.6,0.002]
[1765626370772,5.53023138,3119.7,3119.6,0.002]
[1765626371844,10.35282808,3119.7,3119.6,0.002]
[1765626372170,11.73998322,3119.7,3119.6,0.002]
[1765626372673,7.42338652,3119.7,3119.6,0.002]
[1765626372863,11.73998322,3119.7,3119.6,0.002]
[1765626376370,11.86839227,3119.7,3119.6,0.002]
[1765626377367,7.55179557,3119.7,3119.6,0.002]
[1765626377546,11.86839227,3119.7,3119.6,0.002]
[1765626380378,7.55109138,3119.7,3119.6,0.002]
[1765626380572,11.86768808,3119.7,3119.6,0.002]
[1765626381145,7.55109138,3119.7,3119.6,0.002]
[1765626381376,23.41491651,3119.7,3119.6,0.002]
[1765626381541,19.66073108,3119.7,3119.6,0.002]
[1765626381747,16.18827408,3119.7,3119.6,0.002]
[1765626382246,37.85003508,3119.7,3119.6,0.002]
[1765626382674,42.16663178,3119.7,3119.6,0.002]
[1765626382843,42.66663178,3119.7,3119.6,0.002]
[1765626383048,43.07986391,3119.7,3119.6,0.002]
[1765626383277,47.09751691,3119.7,3119.6,0.002]
[1765626383780,31.39921142,3119.6,3119.5,0.002]
[1765626383981,35.82746577,3119.6,3119.5,0.002]
[1765626384384,39.16144781,3119.6,3119.5,0.002]
[1765626385870,38.74821568,3119.6,3119.5,0.002]
[1765626386153,27.21913268,3119.6,3119.5,0.002]
[1765626386377,33.38281768,3119.6,3119.5,0.002]
[1765626386681,37.69941438,3119.6,3119.5,0.002]
[1765626387480,39.61917269,3119.4,3119.3,0.002]
[1765626387679,43.59022704,3119.4,3119.3,0.002]
[1765626387854,44.08112704,3119.4,3119.3,0.002]
[1765626388049,0.98597929,3119.3,3118.8,0.002]
[1765626388363,25.9592656,3118.9,3118.8,0.002]
[1765626388559,26.74562992,3118.9,3118.8,0.002]
[1765626388880,29.51655254,3118.9,3118.8,0.002]
[1765626389079,28.92312154,3118.9,3118.8,0.002]
[1765626389267,29.22082154,3118.9,3118.8,0.002]
[1765626389468,25.43483384,3118.9,3118.8,0.002]
[1765626390377,34.06735984,3118.9,3118.8,0.002]
[1765626390698,31.75186484,3118.9,3118.8,0.002]
[1765626390988,36.06846154,3118.9,3118.8,0.002]
[1765626391354,47.45731854,3118.9,3118.8,0.002]
[1765626391577,47.87055067,3118.9,3118.8,0.002]
[1765626392272,39.23735727,3118.9,3118.8,0.002]
[1765626392481,23.72854984,3118.9,3118.8,0.002]
[1765626392680,19.60118984,3118.9,3118.8,0.002]
[1765626392991,16.55312684,3118.9,3118.8,0.002]
[1765626393193,9.33012514,3118.9,3118.8,0.002]
[1765626393376,3.50172293,3118.9,3118.8,0.2997]
[1765626393556,4.00772293,3118.9,3118.8,0.2997]
[1765626393880,0.29546432,3118.9,3118.8,0.2997]
[1765626394284,0.29546432,3118.9,3118.8,0.5974]
[1765626394873,0.29546432,3118.9,3118.8,0.2997]
[1765626395458,0.29546432,3118.9,3118.8,0.5974]
[1765626396255,0.29546432,3118.9,3118.8,0.2997]
[1765626399679,0.29546432,3118.9,3118.8,0.5974]
[1765626403415,0.29546432,3118.9,3118.8,0.2997]
[1765626403585,3.50172293,3118.9,3118.8,0.2997]
[1765626403787,0.29546432,3118.9,3118.8,0.2997]
[1765626404303,0.29546432,3118.9,3118.8,0.5974]
[1765626405496,0.29546432,3118.9,3118.8,0.2997]
[1765626406299,0.29546432,3118.9,3118.8,0.5974]
[1765626408209,0.29546432,3118.9,3118.8,4.18414626]
[1765626408407,3.20514011,3120.0,3118.8,7.39050768]
[1765626408707,5.30516096,3119.9,3119.2,0.2977]
[1765626408903,5.30516096,3119.9,3118.8,0.2997]
[1765626408904,4.32108819,3119.6,3118.8,0.2997]
[1765626409109,3.20574469,3119.4,3118.8,3.50606069]
[1765626409275,0.29767277,3119.3,3118.8,3.50606069]
[1765626409477,0.29767277,3119.2,3118.8,3.50606069]
[1765626409798,3.20574469,3119.4,3118.8,3.50606069]
[1765626409799,0.29767277,3119.1,3118.8,0.2997]
[1765626409988,0.29767277,3119.0,3118.8,0.2997]
[1765626410188,0.29767277,3118.9,3118.8,0.2997]
[1765626410503,0.29767277,3118.9,3118.8,3.50606142]
[1765626410709,0.29767277,3118.9,3118.8,3.80376142]
[1765626414297,3.20575323,3119.4,3118.8,3.80376142]
[1765626414501,0.29751928,3119.3,3118.8,3.80376142]
[1765626414802,0.29751928,3119.2,3118.8,3.80376142]
[1765626414979,0.29751928,3119.1,3118.8,3.50606142]
[1765626415183,0.29751928,3119.0,3118.8,3.50606142]
[1765626415383,4.22568455,3119.4,3118.8,3.50606142]
[1765626415605,0.72007756,3119.3,3118.8,3.50606142]
[1765626415791,0.2975091,3119.2,3118.8,3.50606142]
[1765626415989,0.2975091,3119.1,3118.8,3.20836142]
[1765626416215,0.42256846,3119.3,3118.9,0.2977]
[1765626416516,0.29750879,3119.2,3118.9,0.2977]
[1765626416815,0.29750879,3119.1,3118.9,0.2977]
[1765626416982,0.42256846,3119.3,3119.0,0.2977]
[1765626417176,0.42256846,3119.3,3119.2,0.2977]
[1765626417411,0.72006901,3119.3,3119.2,0.2977]
[1765626417615,0.29750055,3119.3,3119.2,0.2977]
[1765626419511,0.29750055,3119.3,3119.2,3.80135024]
[1765626419704,0.29750055,3119.3,3119.2,0.5954]
[1765626420010,0.29750055,3119.3,3119.2,0.2977]
[1765626420511,0.29750055,3119.3,3119.2,0.5954]
[1765626420917,0.29750055,3119.3,3119.2,3.80135024]
[1765626421228,0.29750055,3119.3,3119.2,4.51480879]
[1765626421396,0.29750055,3120.1,3119.2,7.72075903]
[1765626421602,0.29750055,3120.0,3119.3,0.2977]
[1765626421813,0.29750055,3119.9,3119.4,6.41148938]
[1765626422104,0.29750055,3119.8,3119.4,6.41148938]
[1765626422297,0.29750055,3119.7,3119.5,0.8047]
[1765626422508,0.58047529,3120.3,3120.2,0.2977]
[1765626422707,0.87835558,3120.3,3120.2,0.2977]
[1765626423897,0.29788029,3120.3,3120.2,0.2977]
[1765626424991,0.29788029,3120.3,3120.2,3.80032276]
[1765626426324,0.29788029,3120.5,3120.2,3.80032276]
[1765626426502,0.29788029,3120.4,3120.3,0.2977]
[1765626426697,0.29788029,3120.4,3120.1,3.2049834]
[1765626426902,0.29788029,3120.3,3120.1,3.2049834]
[1765626427099,0.29788029,3120.5,3120.2,3.20490525]
[1765626427420,0.29788029,3120.4,3120.2,3.50262232]
[1765626427597,0.001,3120.6,3120.2,3.20492232]
[1765626427598,0.29788029,3120.3,3120.2,3.20492232]
[1765626427806,0.29788029,3120.5,3120.2,3.20492232]
[1765626428004,0.29788029,3120.4,3120.2,3.20492232]
[1765626428195,0.001,3120.6,3120.5,0.2977]
[1765626428392,0.2984177,3120.6,3120.5,0.2977]
[1765626428813,0.2984177,3120.6,3120.1,3.20498692]
[1765626429028,0.2974177,3120.5,3120.1,3.50268692]
[1765626429226,0.2974177,3120.4,3120.1,3.50268692]
[1765626429525,0.2974177,3120.5,3120.1,3.50268692]
[1765626429929,0.2974177,3120.5,3120.4,0.2977]
[1765626430800,0.7645177,3120.5,3120.1,3.20498692]
[1765626431419,0.7645177,3120.5,3120.1,3.50268692]
[1765626432430,0.2974177,3120.5,3120.4,0.2977]
[1765626432603,0.001,3120.6,3120.4,0.2977]
[1765626432805,0.001,3120.6,3120.5,0.5954]
[1765626434727,0.001,3120.6,3120.5,0.2977]
[1765626442110,0.001,3120.6,3120.5,0.5954]
[1765626442439,0.001,3120.6,3120.5,0.2977]
[1765626445738,0.29818617,3120.6,3120.5,0.2977]
[1765626445915,0.001,3120.6,3120.5,3.50231464]
[1765626446239,0.001,3120.6,3120.5,3.80001464]
[1765626446409,0.29818617,3120.6,3120.5,3.80001464]
[1765626446810,0.001,3120.6,3120.5,3.80001464]
[1765626447208,0.29818617,3120.6,3120.5,3.80001464]
[1765626452316,0.29818617,3120.6,3120.5,3.50231464]
[1765626452521,4.41653694,3120.6,3120.1,3.88]
[1765626452719,1.49082242,3120.5,3120.1,3.88]
[1765626452929,0.29718617,3120.4,3120.1,7.08500938]
[1765626453149,0.29718617,3120.4,3120.1,3.88]
[1765626453150,0.29718617,3120.3,3120.1,3.88]
[1765626453318,0.29718617,3120.2,3119.8,0.8037]
[1765626453519,0.29718617,3120.1,3120.0,3.20511433]
[1765626454035,0.29718617,3120.1,3120.0,3.50281433]
[1765626456451,0.29718617,3120.1,3120.0,3.20511433]
[1765626456654,0.74818617,3120.1,3120.0,3.20511433]
[1765626457532,0.74818617,3120.1,3119.9,3.20521225]
[1765626457729,0.001,3120.6,3120.0,3.5028282]
[1765626457730,3.20554089,3120.6,3120.0,3.5028282]
[1765626458055,1.5228659,3120.5,3120.0,6.7079564]
[1765626458254,0.29853403,3120.4,3120.0,6.7079564]
[1765626458555,0.29853403,3120.3,3120.0,6.7079564]
[1765626458754,0.29853403,3120.2,3120.0,6.7079564]
[1765626458951,0.29853403,3120.1,3120.0,3.5028282]
[1765626459253,0.29853403,3120.1,3120.0,3.8005282]
[1765626459625,0.29853403,3120.1,3120.0,3.5028282]
[1765626460127,0.29853403,3120.1,3120.0,0.2977]
[1765626460458,0.29853403,3120.1,3120.0,3.5028282]
[1765626461841,0.29853403,3120.1,3119.9,3.20522308]
[1765626461842,1.21233403,3120.1,3119.9,3.20522308]
[1765626462036,0.29853403,3120.0,3119.9,3.20522308]
[1765626462435,0.29853403,3120.0,3119.9,3.50292308]
[1765626462921,0.29852066,3120.0,3119.9,3.50292308]
[1765626465059,0.29852066,3120.0,3119.9,0.2977]
[1765626465663,0.29852066,3120.0,3119.9,3.50293093]
[1765626465836,0.29852066,3120.0,3119.9,0.2977]
[1765626467033,0.29852066,3120.0,3119.9,3.50293093]
[1765626468254,0.74952066,3120.0,3119.7,6.41084364]
[1765626468433,4.31777798,3120.3,3119.9,0.2977]
[1765626468632,0.2983575,3120.2,3119.9,0.2977]
[1765626468832,0.2983575,3120.1,3119.9,0.2977]
[1765626469034,0.2983575,3120.0,3119.9,0.2977]
[1765626470580,0.2983575,3120.0,3119.9,3.50293093]
[1765626470746,0.2983575,3120.0,3119.9,3.80063093]
[1765626472159,0.2983575,3120.0,3119.9,4.50123475]
[1765626473372,0.2983575,3120.0,3119.9,3.50293093]
[1765626474760,0.2983575,3120.0,3119.9,3.80063093]
[1765626477881,0.2983575,3120.0,3119.9,3.50293093]
[1765626478078,0.2983575,3120.0,3119.9,3.80063093]
[1765626481261,0.001,3120.6,3119.9,19.35174589]
[1765626481586,0.29853765,3120.5,3120.2,4.31732655]
[1765626481768,0.29853765,3120.4,3120.3,0.506]
[1765626481965,0.29853765,3120.4,3120.3,0.8037]
[1765626482169,0.001,3120.6,3120.3,1.1014]
[1765626482474,0.001,3120.6,3120.5,0.2977]
[1765626482681,0.29951015,3120.6,3120.5,0.2977]
[1765626482988,0.29951015,3120.6,3120.5,3.80001464]
[1765626483689,0.29951015,3120.6,3120.5,4.87156008]
[1765626486189,0.75621015,3120.6,3120.4,3.20463562]
[1765626486490,0.29851015,3120.5,3120.4,3.20471734]
[1765626486864,0.75521015,3120.5,3120.3,3.71075736]
[1765626487065,0.29851015,3120.4,3120.3,3.71075736]
[1765626489465,0.75521015,3120.4,3120.3,3.71075736]
[1765626489967,1.22301015,3120.4,3120.3,3.71075736]
[1765626491196,0.75521015,3120.4,3120.3,3.71075736]
[1765626495067,0.29851015,3120.4,3120.3,4.00845736]
[1765626497693,0.001,3120.6,3120.3,7.2132774]
[1765626497902,0.001,3120.6,3120.5,0.2977]
[1765626498192,0.29930592,3120.6,3120.5,3.50231464]
[1765626499483,0.75600592,3120.6,3120.5,3.20461464]
[1765626500082,0.75600592,3120.6,3120.4,3.2047173]
[1765626500282,0.29830592,3120.5,3120.4,3.2047173]
[1765626500683,0.29830592,3120.5,3120.4,3.5024173]
[1765626504908,1.26090592,3120.5,3120.0,3.20502621]
[1765626505111,0.29830592,3120.4,3120.2,6.40984552]
[1765626505421,0.4659,3120.5,3120.2,6.40984552]
[1765626505617,0.29850798,3120.4,3120.2,6.40984552]
[1765626505817,0.4659,3120.5,3120.2,6.40984552]
[1765626506018,0.29850754,3120.4,3120.2,6.40984552]
[1765626506314,0.29855493,3120.3,3120.2,3.20492276]
[1765626506882,0.29855493,3120.3,3120.2,3.50262276]
[1765626507416,0.29855493,3120.3,3120.2,3.20492276]
[1765626508489,0.29855493,3120.3,3120.2,3.50262276]
[1765626508975,1.26115493,3120.3,3120.2,3.20492276]
[1765626509390,0.001,3120.6,3120.2,0.98930441]
[1765626509715,1e-08,3121.6,3120.8,0.405504]
[1765626510007,0.001,3123.0,3122.0,30.0]
[1765626510179,0.1894,3122.9,3122.1,2.03644577]
[1765626510376,0.4669,3122.8,3121.4,0.58047529]
[1765626510580,4.78311788,3122.8,3121.7,0.1894]
[1765626510807,4.78311788,3122.8,3121.8,1.08747529]
[1765626510808,0.4669,3122.8,3121.8,1.08747529]
[1765626511005,0.4659,3122.7,3121.9,6.4063551]
[1765626511583,0.4659,3122.7,3121.9,9.60953265]
[1765626511985,0.4659,3122.7,3121.9,13.92575053]
[1765626512511,0.4659,3122.7,3121.9,10.72257298]
[1765626512715,0.4659,3122.7,3121.9,6.4063551]
[1765626513283,0.4659,3122.7,3122.0,0.58047529]
[1765626515612,0.4659,3122.7,3122.2,0.58047529]
[1765626516024,0.4967,3122.3,3122.2,0.58047529]
[1765626517207,0.9626,3122.3,3122.2,0.58047529]
[1765626517709,0.9626,3122.3,3122.2,3.78334506]
[1765626517910,0.4967,3122.3,3122.2,3.78334506]
[1765626518593,0.9626,3122.3,3122.2,3.78334506]
[1765626522995,0.4967,3122.3,3122.2,3.78334506]
[1765626523398,0.9626,3122.3,3122.2,3.78334506]
[1765626525026,0.9626,3122.3,3122.0,3.20303387]
[1765626525227,0.4659,3122.2,3122.1,3.78344764]
[1765626525611,0.9626,3122.2,3122.1,3.78344764]
[1765626526430,0.4659,3122.4,3122.3,3.20276719]
[1765626526639,0.4659,3122.4,3122.2,3.20286977]
[1765626527739,0.4659,3122.6,3122.2,6.40573954]
[1765626528034,0.4669,3122.8,3122.2,6.40573954]
[1765626529312,0.4669,3122.8,3122.2,6.91273954]
[1765626531151,0.4669,3122.8,3122.4,6.40532922]
[1765626531152,0.001,3122.8,3122.4,6.40532922]
[1765626531911,0.001,3122.8,3122.4,9.60799383]
[1765626532307,0.001,3122.8,3122.5,0.98597929]
[1765626532520,0.001,3122.8,3122.6,0.507]
[1765626534639,0.001,3122.8,3122.7,3.20235693]
[1765626534845,0.001,3122.8,3122.7,4.47443663]
[1765626539157,0.001,3122.8,3122.7,4.50646019]
[1765626539337,0.001,3122.8,3122.7,4.47443663]
[1765626542441,0.001,3122.8,3122.7,8.78158113]
[1765626544671,0.001,3122.8,3122.7,9.28858113]
[1765626547059,0.001,3122.8,3122.7,4.98143663]
[1765626548540,0.001,3122.8,3122.7,4.47443663]
[1765626548750,0.001,3122.8,3122.7,4.28983222]
[1765626548751,0.9775,3122.8,3122.7,4.28983222]
[1765626549250,0.9775,3122.8,3122.7,1.08747529]
[1765626549644,1.27522813,3122.8,3121.3,3.20373333]
[1765626549844,1.27422813,3122.7,3122.5,3.2025423]
[1765626550063,0.29772813,3122.6,3122.5,3.2025423]
[1765626550266,1.27422813,3122.6,3122.5,3.2025423]
[1765626550561,0.001,3122.8,3122.5,4.93054736]
[1765626550763,0.001,3122.8,3122.6,0.58047529]
[1765626550935,0.001,3122.8,3122.7,3.78283222]
[1765626551637,0.4817,3122.8,3122.7,3.78283222]
[1765626552347,0.9775,3122.8,3122.7,3.78283222]
[1765626562476,0.4817,3122.8,3122.7,3.78283222]
[1765626562688,0.001,3122.8,3122.7,8.83921417]
[1765626562983,0.001,3122.8,3122.7,4.53206967]
[1765626572964,0.001,3122.8,3122.7,4.66028856]
[1765626575188,0.001,3122.8,3122.7,8.54028856]
[1765626590879,0.4981,3122.8,3122.7,8.54028856]
[1765626591075,0.001,3122.8,3122.7,8.41206967]
[1765626591273,0.001,3122.8,3122.7,8.91806967]
[1765626593006,0.001,3122.8,3122.7,5.03806967]
[1765626593604,0.4981,3122.8,3122.7,5.03806967]
[1765626594093,0.9538,3122.8,3122.7,5.03806967]
[1765626594901,0.4981,3122.8,3122.7,5.03806967]
[1765626600130,0.001,3122.8,3122.7,5.03806967]
[1765626600315,0.001,3122.8,3122.7,5.07009323]
[1765626600516,0.001,3122.8,3122.7,5.03806967]
[1765626601127,0.001,3122.8,3122.7,5.16629062]
[1765626601924,0.001,3122.8,3122.7,9.47426847]
[1765626602098,0.001,3122.8,3122.7,13.35426847]
[1765626603237,0.001,3122.8,3122.7,13.75977247]
[1765626603922,0.001,3122.8,3122.7,13.25377247]
[1765626604097,0.001,3122.8,3122.7,9.45179462]
[1765626604420,0.001,3122.8,3122.7,13.75977247]
[1765626609133,0.001,3122.8,3122.7,24.51369547]
[1765626609327,0.001,3122.8,3122.7,23.26646847]
[1765626609830,0.001,3122.9,3122.8,0.58047529]
[1765626610131,0.001,3123.0,3122.9,20.490792]
[1765626610335,0.4519,3124.1,3123.6,4.88845314]
[1765626610631,0.4519,3124.1,3123.6,5.39445314]
[1765626611139,0.001,3124.0,3123.6,9.04778738]
[1765626611433,0.001,3124.0,3123.6,9.45329138]
[1765626611635,0.001,3124.0,3123.6,10.20252883]
[1765626613707,0.001,3124.0,3123.6,14.51050668]
[1765626615008,0.001,3124.0,3123.6,15.73010462]
[1765626615508,0.001,3124.0,3123.6,10.8123278]
[1765626615916,0.001,3124.0,3123.6,15.73010462]
[1765626624559,0.469,3124.0,3123.6,15.73010462]
[1765626624761,0.469,3124.0,3123.6,10.8123278]
[1765626625156,0.001,3124.0,3123.6,15.73010462]
[1765626628640,0.001,3124.0,3123.6,19.61010462]
[1765626636652,0.462,3124.0,3123.6,19.61010462]
[1765626637865,0.9437,3123.7,3123.6,14.6923278]
[1765626638462,0.4827,3123.7,3123.6,14.6923278]
[1765626638662,0.001,3123.7,3123.6,14.6923278]
[1765626638957,0.4827,3123.7,3123.6,14.6923278]
[1765626639478,0.9437,3123.7,3123.6,14.2858238]
[1765626639662,0.9437,3123.7,3123.6,13.53658635]
[1765626641377,0.4827,3123.7,3123.6,13.53658635]
[1765626641784,0.9437,3123.7,3123.6,13.53658635]
[1765626645669,0.4827,3123.7,3123.6,13.53658635]
[1765626645890,0.4827,3123.7,3123.6,12.92281908]
[1765626646743,0.001,3123.7,3123.6,12.92281908]
[1765626648580,0.4827,3123.7,3123.6,12.92281908]
[1765626649485,0.001,3123.7,3123.6,12.92281908]
[1765626650890,0.001,3123.7,3123.6,12.92265765]
[1765626656492,0.4717,3123.7,3123.6,12.92265765]
[1765626656668,0.9437,3123.7,3123.6,12.92265765]
[1765626664180,0.9437,3123.7,3123.6,8.61880953]
[1765626664495,0.9437,3123.7,3123.6,8.11380953]
[1765626664666,0.9437,3123.7,3123.6,8.61880953]
[1765626667187,0.9437,3123.7,3123.6,4.73880953]
[1765626675310,0.4717,3123.7,3123.6,9.04265765]
[1765626675612,0.9437,3123.7,3123.6,9.04265765]
[1765626678411,0.9437,3123.7,3123.6,4.73880953]
[1765626682508,0.4717,3123.7,3123.6,4.73880953]
[1765626685013,0.001,3123.7,3123.6,4.73880953]
[1765626686200,0.4792,3123.7,3123.6,4.73880953]
[1765626686409,0.4792,3123.7,3123.6,9.04369905]
[1765626686716,0.975,3123.7,3123.6,9.04369905]
[1765626686918,0.975,3123.7,3123.6,4.73880953]
[1765626696825,0.975,3123.7,3123.6,8.61880953]
[1765626705431,0.975,3123.7,3123.6,0.4519]
[1765626705733,1.27457595,3123.7,3123.6,1.03237529]
[1765626706028,1.27457595,3123.7,3123.6,0.4519]
[1765626713152,1.74115906,3123.7,3123.4,0.505]
[1765626713336,0.4782,3123.5,3123.4,0.505]
[1765626713522,0.77777595,3123.5,3123.4,0.505]
[1765626713853,1.27357595,3123.5,3123.4,0.505]
[1765626714051,1.27357595,3123.5,3123.4,1.28277595]
[1765626714225,1.27357595,3123.5,3123.4,4.48441518]
[1765626715254,0.974,3123.5,3123.4,4.48441518]
[1765626716950,0.974,3123.5,3123.4,1.28277595]
[1765626719270,0.974,3123.5,3123.4,4.48441518]
[1765626722068,0.974,3123.5,3123.4,1.28277595]
[1765626722366,0.974,3123.5,3123.4,4.48441518]
[1765626729368,1.27307229,3123.5,3123.4,4.48441518]
[1765626730194,1.26757229,3123.5,3123.4,4.48441518]
[1765626736590,1.26799749,3123.5,3123.4,4.48441518]
[1765626745313,0.79909749,3123.5,3123.4,4.48441518]
[1765626750523,0.29949749,3123.5,3123.4,4.48441518]
[1765626751528,0.77139749,3123.5,3123.4,4.48441518]
[1765626752113,0.29949749,3123.5,3123.4,5.8335159]
[1765626752432,0.001,3123.7,3123.5,0.58047529]
[1765626752632,0.29968328,3123.6,3123.5,0.58047529]
[1765626753226,0.29968328,3123.6,3123.5,0.88015857]
[1765626753713,0.29968328,3123.6,3123.5,5.1876606]
[1765626754220,0.77158328,3123.6,3123.5,4.0816953]
[1765626754900,0.29968328,3123.6,3123.5,4.5866953]
[1765626757338,0.001,3123.7,3123.5,4.5866953]
[1765626757703,0.001,3123.7,3123.5,4.28701202]
[1765626758017,0.001,3123.7,3123.6,0.6709]
[1765626758218,0.30053572,3123.7,3123.6,0.6709]
[1765626758513,0.77243572,3123.7,3123.6,3.87233424]
[1765626762944,1.25603572,3123.7,3123.6,3.87233424]
[1765626763342,0.77243572,3123.7,3123.6,3.87233424]
[1765626765549,0.30053572,3123.7,3123.6,3.87233424]
[1765626766123,1.25603572,3123.7,3123.6,3.87233424]
[1765626767037,0.77243572,3123.7,3123.6,3.87233424]
[1765626767212,1.25603572,3123.7,3123.6,0.6709]
[1765626767608,1.25603572,3123.7,3123.6,3.20143424]
[1765626769010,1.25603572,3123.7,3123.5,4.66799509]
[1765626769163,0.29953572,3123.6,3123.5,5.24847038]
[1765626770651,1.25503572,3123.6,3123.5,5.24847038]
[1765626771249,0.77143572,3123.6,3123.5,5.24847038]
[1765626777050,0.29953572,3123.6,3123.5,5.24847038]
[1765626778954,0.29965797,3123.6,3123.5,5.24847038]
[1765626780252,0.77205797,3123.6,3123.5,5.24847038]
[1765626781061,0.29965797,3123.6,3123.5,5.24847038]